bitfinex/quotes_ETHUSD_20250507
["timestamp","ask_amount","ask_price","bid_price","bid_amount"]
[1746643036405,5.5100439,1814.9,1814.6,1.18782343]
[1746643036609,0.23742238,1815.0,1814.6,6.75367374]
[1746643036771,5.50949122,1815.1,1814.7,6.18588977]
[1746643036973,5.50903481,1815.2,1814.7,0.67536737]
[1746643037303,5.74710377,1815.1,1814.6,6.75371177]
[1746643037601,5.74710377,1815.1,1814.7,11.0209176]
[1746643037806,5.74710377,1815.1,1814.7,5.51036966]
[1746643038018,0.23755842,1815.1,1814.9,0.7551]
[1746643038306,5.50964187,1815.0,1814.9,0.7551]
[1746643038496,5.75340527,1815.0,1814.9,0.7551]
[1746643039094,5.51024906,1814.8,1814.4,0.8135]
[1746643039273,5.51024906,1814.8,1814.4,6.32478091]
[1746643039470,0.24409891,1814.7,1814.5,0.63247809]
[1746643039919,5.51041417,1814.8,1814.5,6.14362697]
[1746643040088,0.24400368,1814.6,1814.4,0.8135]
[1746643040408,5.51065628,1814.7,1814.4,6.32495975]
[1746643040586,0.24395942,1814.5,1814.4,6.38006674]
[1746643040783,5.50950166,1815.1,1814.7,5.51044299]
[1746643041107,5.50765947,1815.7,1815.1,4.359254]
[1746643041402,5.50765947,1815.7,1815.0,5.14384928]
[1746643041403,5.5076154,1815.7,1815.3,6.32420609]
[1746643041605,5.5079159,1815.6,1815.3,0.8157]
[1746643042182,5.50827154,1815.5,1815.3,0.8157]
[1746643042379,5.50752917,1815.7,1815.3,6.32429568]
[1746643042588,6.29136332,1816.0,1815.3,6.32429568]
[1746643042589,11.01588737,1815.6,1815.3,0.8157]
[1746643042821,5.5069287,1815.9,1815.0,10.65333527]
[1746643042975,5.50904585,1815.2,1815.0,0.7777]
[1746643043172,0.8165,1815.6,1815.0,0.7777]
[1746643043484,0.8165,1815.6,1814.8,3.0]
[1746643043485,5.50933832,1815.1,1814.8,0.8033]
[1746643044115,5.50964571,1815.0,1814.8,0.8033]
[1746643044311,5.50812448,1815.5,1814.6,0.7922]
[1746643044312,5.50842789,1815.4,1814.6,0.7922]
[1746643044511,5.5094891,1815.1,1814.7,5.51045043]
[1746643044685,5.50975881,1815.0,1814.6,0.7922]
[1746643045023,5.51011369,1814.9,1814.6,0.7922]
[1746643045219,6.28519222,1815.2,1814.6,0.7922]
[1746643045220,5.51025038,1814.8,1814.6,0.7922]
[1746643045403,6.28519222,1815.2,1814.6,0.7922]
[1746643045577,5.51013029,1814.9,1814.6,0.7922]
[1746643046212,5.51064985,1814.7,1814.4,0.828]
[1746643046710,5.51025353,1814.8,1814.4,6.33925641]
[1746643046711,5.5102744,1814.8,1814.4,6.33925641]
[1746643047090,5.50935493,1815.1,1814.4,0.828]
[1746643047420,5.51017876,1814.9,1814.5,5.51103485]
[1746643047571,5.51029739,1814.8,1814.6,0.55110348]
[1746643047775,5.51008445,1814.9,1814.4,6.33929862]
[1746643048013,5.51008445,1814.9,1814.4,6.33926058]
[1746643048217,11.02029818,1814.9,1814.5,5.51112477]
[1746643048407,5.51027101,1814.8,1814.4,11.85052224]
[1746643048615,5.50949139,1815.1,1814.7,5.51044252]
[1746643048773,5.50918453,1815.2,1814.9,0.8218]
[1746643048975,5.50955147,1815.1,1814.9,0.8218]
[1746643050025,5.5091168,1815.2,1814.9,0.8218]
[1746643051266,5.73037667,1815.1,1814.9,0.8218]
[1746643051759,5.73037667,1815.1,1814.8,0.55104425]
[1746643051946,5.51010308,1814.9,1814.6,0.7846]
[1746643052119,5.51010308,1814.9,1814.6,1.71416326]
[1746643052320,0.22093169,1814.8,1814.6,1.71416326]
[1746643052815,5.51073969,1814.7,1814.3,6.70031627]
[1746643053016,5.5113847,1814.5,1814.3,0.7846]
[1746643053263,5.51146384,1814.4,1814.1,5.5122942]
[1746643053471,0.22216348,1814.3,1814.1,6.2968942]
[1746643053682,5.51133135,1814.5,1814.2,0.62968942]
[1746643053975,5.7338049,1814.4,1814.1,0.7846]
[1746643054137,0.2223403,1814.4,1814.1,0.7846]
[1746643054334,0.2223403,1814.4,1814.3,5.51176762]
[1746643054684,5.51003498,1814.9,1814.5,5.51105571]
[1746643054851,0.21509896,1814.8,1814.5,5.51098042]
[1746643055058,0.21509896,1814.8,1814.7,6.2951527]
[1746643055251,6.3281011,1815.3,1814.9,5.50992022]
[1746643055459,6.961,1815.6,1815.1,5.50933832]
[1746643055460,0.21525556,1815.2,1815.1,5.50933832]
[1746643055665,5.50854409,1815.4,1815.1,0.7536]
[1746643055957,5.72433515,1815.3,1814.9,6.26341076]
[1746643056148,5.5094878,1815.1,1814.9,1.93095321]
[1746643056354,5.50964651,1815.0,1814.7,6.26054077]
[1746643056585,0.21529974,1815.0,1814.7,6.26054077]
[1746643056787,5.72498645,1815.0,1814.7,6.26054077]
[1746643056993,0.21529974,1815.0,1814.7,6.26054077]
[1746643057149,0.21529974,1815.0,1814.8,0.62605408]
[1746643057481,5.51014867,1814.9,1814.5,5.51104121]
[1746643057783,0.21512965,1814.8,1814.5,5.51104121]
[1746643057995,0.21512965,1814.8,1814.7,5.5105527]
[1746643058198,0.21512965,1814.8,1814.6,5.51072929]
[1746643058493,0.21505479,1814.7,1814.5,5.51098082]
[1746643058797,0.21505479,1814.7,1814.4,5.51134269]
[1746643059303,5.51041927,1814.8,1814.6,0.7526]
[1746643059599,5.51041927,1814.8,1814.3,5.14384928]
[1746643059600,5.5109871,1814.6,1814.3,0.7963]
[1746643059900,5.72624237,1814.5,1814.3,1.42712156]
[1746643060099,0.21506821,1814.5,1814.2,5.51194469]
[1746643060309,0.21506821,1814.5,1814.2,5.51186868]
[1746643060459,5.51095386,1814.6,1814.2,5.51186868]
[1746643060778,0.21507841,1814.5,1814.4,6.28923201]
[1746643061115,5.51009602,1814.9,1814.5,5.5110704]
[1746643061456,0.21524176,1814.8,1814.5,5.5110704]
[1746643061652,5.72550702,1814.8,1814.4,6.91815521]
[1746643061899,0.7922,1814.7,1814.2,0.7838]
[1746643062076,5.51066803,1814.7,1814.3,5.51155016]
[1746643062283,0.21501044,1814.6,1814.3,5.51155016]
[1746643062484,5.51066803,1814.7,1814.3,5.51155016]
[1746643062679,5.72602913,1814.6,1814.2,6.2958413]
[1746643062869,5.51135786,1814.5,1814.2,0.7838]
[1746643063068,0.21490151,1814.4,1814.2,1.45439527]
[1746643063273,5.51133814,1814.5,1814.2,1.45439527]
[1746643063484,0.21490151,1814.4,1814.2,6.29584759]
[1746643063755,5.51037203,1814.8,1814.4,5.51121078]
[1746643064184,5.51037203,1814.8,1814.4,5.51125127]
[1746643064383,5.51065431,1814.7,1814.4,5.51146192]
[1746643064995,5.51065431,1814.7,1814.3,5.51160451]
[1746643065199,5.51094948,1814.6,1814.2,6.29579282]
[1746643065365,5.51162501,1814.4,1814.1,0.40980012]
[1746643065562,5.51162501,1814.4,1814.1,5.51237475]
[1746643065960,5.51188665,1814.3,1814.0,6.26506837]
[1746643066160,5.51208287,1814.2,1814.0,0.7524]
[1746643066380,0.21244191,1814.2,1814.0,6.26498026]
[1746643066808,5.51166401,1814.4,1814.0,6.26496893]
[1746643067105,11.02339386,1814.4,1814.0,6.26496893]
[1746643067325,5.72426525,1814.3,1814.0,0.7524]
[1746643067661,5.72426525,1814.3,1813.8,5.5131152]
[1746643067997,0.21249639,1814.3,1814.1,5.51227489]
[1746643068304,6.33202962,1814.5,1814.2,5.51206372]
[1746643068525,5.72415173,1814.4,1814.0,5.5124974]
[1746643068671,5.72415173,1814.4,1814.0,5.51247964]
[1746643068865,5.51182274,1814.3,1814.1,0.55124796]
[1746643069065,0.21244191,1814.2,1813.9,5.92219567]
[1746643069494,0.21244191,1814.2,1814.0,5.51264908]
[1746643069776,5.51133862,1814.5,1814.1,0.05512313]
[1746643070003,5.51191923,1814.3,1813.9,5.51284136]
[1746643070183,5.51191923,1814.3,1813.9,6.30884136]
[1746643070378,5.72376016,1814.2,1813.9,6.9397255]
[1746643070713,5.5128677,1814.0,1813.6,9.95933847]
[1746643071017,5.51280606,1814.0,1813.9,3.64963173]
[1746643071173,5.51267916,1814.0,1813.9,3.64963173]
[1746643071371,3.04946028,1814.0,1813.9,3.64963173]
[1746643071573,5.51250616,1814.1,1813.9,3.64963173]
[1746643072073,6.29966301,1814.4,1814.0,5.51253991]
[1746643072272,5.51177928,1814.3,1813.9,9.52736155]
[1746643072478,6.29966301,1814.4,1814.0,5.51254104]
[1746643072894,5.51194095,1814.3,1813.9,9.52749705]
[1746643073088,5.51237459,1814.2,1813.9,4.0145949]
[1746643073289,5.51230284,1814.2,1813.9,0.36496317]
[1746643073505,5.5125202,1814.1,1813.7,5.51345525]
[1746643073690,5.51215873,1814.2,1813.8,5.51326622]
[1746643073894,5.51242529,1814.1,1813.7,5.51341891]
[1746643074100,5.51242529,1814.1,1813.7,5.51339595]
[1746643074294,5.51215873,1814.2,1813.8,5.51319259]
[1746643074476,5.51239728,1814.1,1813.7,6.06481004]
[1746643074682,5.51217424,1814.2,1813.8,5.51327786]
[1746643074995,5.51217424,1814.2,1813.7,6.06474611]
[1746643075198,5.51239425,1814.1,1813.7,6.06474611]
[1746643075520,5.5125201,1814.1,1813.7,6.06471903]
[1746643076428,5.5125201,1814.1,1813.7,0.55133959]
[1746643076584,0.8226,1814.3,1813.5,9.97421842]
[1746643076788,0.8226,1814.3,1813.7,5.51333992]
[1746643076789,5.5125367,1814.1,1813.7,5.51333992]
[1746643076998,11.02450177,1814.2,1813.8,5.51323909]
[1746643077290,6.33448464,1814.3,1813.9,5.51271939]
[1746643077490,5.51252089,1814.1,1813.8,1.1026579]
[1746643077686,6.33439019,1814.3,1813.7,5.51345507]
[1746643077892,5.51277054,1814.0,1813.6,5.93417756]
[1746643078093,5.51277054,1814.0,1813.7,5.51352657]
[1746643078311,6.33439019,1814.3,1813.5,9.97425215]
[1746643078312,5.51330407,1813.8,1813.5,9.97425215]
[1746643078629,6.27871177,1813.8,1813.5,3.64963173]
[1746643078936,6.27864867,1813.8,1813.4,5.5143564]
[1746643079137,6.27864867,1813.8,1813.4,7.10436161]
[1746643079289,0.7653,1813.8,1813.6,5.51387562]
[1746643079625,11.02581417,1814.0,1813.6,5.51387562]
[1746643079823,5.51299585,1813.9,1813.5,5.51397298]
[1746643080042,11.02623383,1813.9,1813.5,5.51408542]
[1746643080206,5.51299585,1813.9,1813.4,7.10436153]
[1746643080405,5.5133124,1813.8,1813.5,5.51419145]
[1746643080723,5.51371577,1813.7,1813.3,10.38611261]
[1746643080927,5.51371577,1813.7,1813.3,11.97615372]
[1746643081098,5.51371577,1813.7,1813.4,5.51448937]
[1746643081425,5.69947749,1813.6,1813.3,3.64963173]
[1746643081830,0.18547827,1813.6,1813.3,9.16443843]
[1746643082029,0.18547827,1813.6,1813.3,10.63237127]
[1746643082227,6.3138708,1813.7,1813.3,10.63237127]
[1746643082419,0.18542373,1813.5,1813.3,3.64963173]
[1746643082617,5.51389501,1813.6,1813.0,9.16522057]
[1746643082821,0.18505253,1813.4,1813.3,5.51480725]
[1746643082998,0.18430548,1813.5,1813.4,5.51450314]
[1746643083327,0.8272,1814.0,1813.6,5.5137509]
[1746643083501,5.51341237,1813.8,1813.4,5.51432359]
[1746643083705,5.51341237,1813.8,1813.4,6.61723667]
[1746643083896,5.51326607,1813.9,1813.4,6.61722717]
[1746643084098,5.5133297,1813.8,1813.4,6.61719472]
[1746643084287,0.8272,1814.0,1813.3,5.51470353]
[1746643084492,5.51341431,1813.8,1813.4,5.51439001]
[1746643084742,5.51367259,1813.7,1813.3,5.51463844]
[1746643084933,5.51346974,1813.8,1813.4,5.51444221]
[1746643085094,5.51359876,1813.7,1813.3,5.51470227]
[1746643085403,0.8301,1813.6,1813.2,0.42244542]
[1746643085730,0.8301,1813.6,1813.2,5.5150205]
[1746643085906,5.51373566,1813.7,1813.3,5.51462829]
[1746643086343,6.28142467,1813.8,1813.1,5.57052623]
[1746643086505,6.28287208,1814.1,1813.7,5.51344148]
[1746643086711,5.51280617,1814.0,1813.6,5.51370377]
[1746643086909,5.51280617,1814.0,1813.6,11.02738054]
[1746643087261,5.51280617,1814.0,1813.6,5.51379166]
[1746643087440,6.2828476,1814.1,1813.5,5.93337464]
[1746643087441,0.7703,1814.1,1813.5,5.93337464]
[1746643087751,6.28283469,1814.1,1813.7,5.51345868]
[1746643087932,6.28283469,1814.1,1813.6,6.32600731]
[1746643088328,5.51267916,1814.0,1813.4,5.51430052]
[1746643088637,5.51267916,1814.0,1813.1,5.51528176]
[1746643088638,0.8199,1813.7,1813.1,5.51528176]
[1746643088848,5.51490931,1813.3,1812.9,6.34043944]
[1746643089139,6.33349406,1813.7,1813.0,6.14958509]
[1746643089140,5.51429901,1813.5,1813.0,6.14958509]
[1746643089430,11.02821906,1813.6,1813.2,5.51511068]
[1746643089604,5.51436654,1813.5,1813.1,5.51519054]
[1746643089794,11.02821384,1813.6,1813.2,5.51500366]
[1746643089991,11.84756153,1813.7,1813.3,5.51467962]
[1746643090228,0.16875009,1813.5,1813.3,7.42214795]
[1746643090434,5.51402535,1813.6,1813.3,1.90746833]
[1746643090634,0.16869555,1813.4,1813.3,7.42227558]
[1746643090806,5.51355273,1813.8,1813.4,5.51447482]
[1746643091012,5.51355273,1813.8,1813.4,5.5143537]
[1746643091212,11.02706635,1813.8,1813.4,5.5143537]
[1746643091527,5.51351221,1813.8,1813.4,5.51439303]
[1746643091727,5.51362007,1813.7,1813.4,5.51439303]
[1746643091930,5.51472422,1813.4,1813.0,6.90692421]
[1746643092132,5.51439744,1813.5,1813.1,5.51541354]
[1746643092336,5.51408661,1813.6,1813.1,5.51541354]
[1746643092509,0.7816,1813.5,1812.9,0.05515282]
[1746643092708,5.51465695,1813.4,1812.9,0.47851988]
[1746643092912,5.51465695,1813.4,1812.9,6.36934676]
[1746643093247,5.51411052,1813.6,1812.9,6.4246264]
[1746643093464,5.51411052,1813.6,1813.3,5.51469092]
[1746643093755,5.51411052,1813.6,1813.2,5.51493033]
[1746643094260,5.51433288,1813.5,1813.1,5.51516679]
[1746643094459,5.51411052,1813.6,1813.2,5.5148574]
[1746643094790,11.02830361,1813.6,1813.2,5.5148574]
[1746643095056,11.02830361,1813.6,1812.9,5.93928577]
[1746643095057,5.51506283,1813.3,1812.9,5.93928577]
[1746643095212,6.27273554,1813.8,1812.9,5.93928577]
[1746643095213,0.7696,1813.4,1813.0,5.51571242]
[1746643095417,6.28429147,1813.4,1813.0,6.66121224]
[1746643095656,6.28429147,1813.4,1813.0,1.14549982]
[1746643095955,6.28429147,1813.4,1812.8,0.8224]
[1746643095956,5.51531199,1813.2,1812.8,6.33862468]
[1746643096310,5.51531199,1813.2,1812.8,6.33851973]
[1746643096538,5.51573982,1813.0,1812.7,5.93547215]
[1746643096710,5.51573982,1813.0,1812.7,0.41902123]
[1746643096910,5.5154733,1813.1,1812.7,0.59358325]
[1746643097158,6.28411001,1813.4,1812.7,0.59358325]
[1746643097159,5.5161203,1812.9,1812.7,0.59358325]
[1746643097330,0.96881554,1813.0,1812.5,0.7695]
[1746643097533,5.51693174,1812.7,1812.4,5.51744848]
[1746643097813,0.16088884,1812.6,1812.3,10.34697]
[1746643098059,0.16088884,1812.6,1812.3,4.40753173]
[1746643098360,5.51754579,1812.4,1812.3,3.64963173]
[1746643098708,6.87936076,1812.4,1812.3,3.64963173]
[1746643098960,1.36181497,1812.4,1812.3,3.64963173]
[1746643099108,0.15938436,1812.4,1812.3,3.64963173]
[1746643099528,0.15938436,1812.4,1812.1,9.1679645]
[1746643099721,6.34553779,1812.5,1812.1,9.1679645]
[1746643100015,6.34553779,1812.5,1812.1,9.16790768]
[1746643100752,0.8281,1812.5,1812.1,14.68618286]
[1746643100954,6.3453964,1812.5,1812.1,9.16790691]
[1746643101151,5.51789923,1812.3,1812.1,3.64963173]
[1746643101315,0.15927509,1812.2,1812.1,3.64963173]
[1746643101516,5.67742981,1812.2,1812.1,3.64963173]
[1746643101959,6.46672981,1812.2,1812.1,3.64963173]
[1746643102293,5.51937922,1811.8,1811.4,6.28730665]
[1746643102465,5.5192129,1811.9,1811.4,0.7669]
[1746643102615,0.15446245,1811.7,1811.3,9.17037012]
[1746643102816,5.51982747,1811.7,1811.3,9.17037012]
[1746643103064,6.44919172,1811.8,1811.3,3.64963173]
[1746643103065,5.52041258,1811.5,1811.3,3.64963173]
[1746643103223,0.15466679,1811.6,1811.3,3.64963173]
[1746643103550,5.51979435,1811.7,1811.3,9.17037577]
[1746643103751,0.1527737,1811.6,1811.3,3.64963173]
[1746643103951,5.52012314,1811.6,1811.3,3.64963173]
[1746643104151,5.67316155,1811.5,1811.3,3.64963173]
[1746643104448,11.19370646,1811.5,1811.3,3.64963173]
[1746643104657,5.67316155,1811.5,1811.3,3.64963173]
[1746643104876,0.15271901,1811.5,1811.3,3.64963173]
[1746643105170,0.8178,1812.0,1811.7,5.51954781]
[1746643105369,6.69,1812.1,1811.8,5.51926795]
[1746643105672,0.8178,1812.2,1811.8,5.51924779]
[1746643105875,5.5185715,1812.1,1811.7,5.51954073]
[1746643106029,11.03730072,1812.1,1811.7,5.51955905]
[1746643106235,5.51895549,1812.0,1811.6,5.51972289]
[1746643106858,5.51895549,1812.0,1811.3,9.53523608]
[1746643106859,5.5199235,1811.7,1811.3,9.53523608]
[1746643107058,5.5205918,1811.4,1810.9,0.8078]
[1746643107378,6.34070366,1811.5,1811.1,5.52147906]
[1746643107379,6.34074646,1811.5,1811.1,5.52147906]
[1746643108074,5.52073234,1811.4,1811.0,5.52170773]
[1746643108281,0.8203,1811.5,1811.1,5.52125961]
[1746643108444,5.5201061,1811.6,1811.2,5.52116338]
[1746643108769,6.27495359,1811.8,1811.4,5.52040751]
[1746643108969,5.51979461,1811.7,1811.3,5.52088176]
[1746643109172,6.27485892,1811.8,1811.3,5.52088176]
[1746643109173,0.7554,1811.8,1811.3,5.52088176]
[1746643109332,5.52001799,1811.6,1811.2,5.52101124]
[1746643109535,5.51986514,1811.7,1811.2,5.52101124]
[1746643109775,6.27492522,1811.8,1811.2,0.55210112]
[1746643109990,11.79454681,1811.8,1811.3,5.52072385]
[1746643110191,0.7554,1811.8,1811.1,5.5213637]
[1746643110410,5.52009964,1811.6,1811.2,11.0419854]
[1746643110573,5.52041927,1811.5,1811.1,5.52130852]
[1746643110757,5.52041927,1811.5,1811.0,5.52166962]
[1746643110961,6.27496081,1811.8,1811.0,5.52181115]
[1746643111204,5.51979274,1811.7,1811.3,5.52067974]
[1746643111487,5.63727818,1811.7,1811.2,5.52108737]
[1746643111691,5.52020975,1811.6,1811.2,5.52108737]
[1746643111901,5.63790805,1811.5,1811.1,5.52133738]
[1746643112062,0.1173351,1811.5,1811.2,5.52101169]
[1746643112260,5.52009411,1811.6,1811.2,5.52101169]
[1746643112487,5.52059888,1811.4,1811.1,5.52143263]
[1746643112682,0.11720521,1811.3,1810.9,6.7498483]
[1746643112995,6.27093113,1811.4,1811.0,5.52169834]
[1746643113201,0.11518413,1811.2,1810.9,6.74975773]
[1746643113376,5.52092865,1811.3,1810.9,5.94195773]
[1746643113593,0.11509867,1811.1,1810.8,8.5221532]
[1746643113898,5.52022383,1811.6,1811.1,5.52150626]
[1746643114060,5.52022383,1811.6,1811.2,6.07313992]
[1746643114262,5.51976371,1811.7,1811.1,0.55]
[1746643114458,5.51976371,1811.7,1811.3,5.52069321]
[1746643114661,5.51976371,1811.7,1811.0,6.29727676]
[1746643114662,5.52046785,1811.5,1811.0,6.29741137]
[1746643114858,5.51945207,1811.8,1811.1,5.52145255]
[1746643115085,3.0,1811.9,1811.2,5.52102878]
[1746643115086,5.52002084,1811.6,1811.2,5.52102878]
[1746643115390,5.52038494,1811.5,1811.1,5.52140336]
[1746643115987,5.52002632,1811.6,1811.1,5.52131216]
[1746643116193,5.5195183,1811.8,1811.0,0.83091184]
[1746643116390,5.51969907,1811.7,1811.4,5.52045542]
[1746643116586,3.0,1811.9,1811.0,0.7757]
[1746643116786,5.52086159,1811.4,1811.0,5.52180576]
[1746643116986,5.52082358,1811.4,1811.0,5.52180576]
[1746643117199,5.52090296,1811.3,1810.9,5.52191204]
[1746643117507,5.52082358,1811.4,1810.9,5.52196232]
[1746643117701,5.52132164,1811.2,1810.8,11.04444423]
[1746643117903,5.80319616,1811.3,1810.9,5.52198555]
[1746643118611,5.52163854,1811.1,1810.7,6.29631395]
[1746643118807,5.52166469,1811.1,1810.7,6.29612792]
[1746643119000,5.52129793,1811.2,1810.8,5.52231984]
[1746643119378,5.52071303,1811.4,1811.0,5.52166842]
[1746643119577,5.52076737,1811.4,1810.8,0.62959198]
[1746643119801,6.608,1811.5,1810.9,5.52197039]
[1746643120020,6.608,1811.5,1811.2,5.52119767]
[1746643120178,0.282,1811.6,1811.1,0.8219]
[1746643120378,5.52044801,1811.5,1811.1,0.8219]
[1746643120609,0.282,1811.6,1811.3,5.52075433]
[1746643120918,5.51945758,1811.8,1811.4,11.59290508]
[1746643121219,11.32052198,1811.9,1811.5,5.52018843]
[1746643121420,11.32052198,1811.9,1811.5,5.52007925]
[1746643121421,5.801171,1811.9,1811.5,5.52007925]
[1746643121618,6.608,1812.1,1811.6,5.51980389]
[1746643121817,6.608,1812.1,1811.7,5.51937316]
[1746643122020,0.282,1812.3,1811.8,0.55193732]
[1746643122221,5.51805146,1812.3,1811.9,5.51888071]
[1746643122393,12.12533874,1812.5,1811.8,5.5192423]
[1746643122723,5.51841491,1812.2,1811.8,5.5192423]
[1746643123019,5.51754579,1812.4,1811.6,6.32993727]
[1746643123020,5.51887158,1812.0,1811.6,6.32993727]
[1746643123228,0.282,1812.2,1811.8,5.51907315]
[1746643123527,6.89,1812.5,1812.0,5.51855533]
[1746643123818,5.51755967,1812.4,1812.0,6.34425533]
[1746643124017,12.40745797,1812.5,1812.1,5.51835186]
[1746643124221,5.51754953,1812.4,1812.0,6.34423731]
[1746643124380,5.51787871,1812.3,1812.0,1.46012373]
[1746643124720,5.51772134,1812.4,1812.0,0.8257]
[1746643125135,5.51799613,1812.3,1812.0,0.8257]
[1746643125504,5.51772134,1812.4,1812.0,0.8257]
[1746643125733,5.51772134,1812.4,1812.0,6.34425084]
[1746643126430,5.51789563,1812.3,1812.0,0.8257]
[1746643126620,5.51845924,1812.1,1811.7,0.7968]
[1746643126822,5.51925559,1811.9,1811.5,6.31691492]
[1746643127132,5.51889838,1812.0,1811.6,5.51983301]
[1746643127301,5.51889838,1812.0,1811.7,5.51966195]
[1746643127503,5.51889838,1812.0,1811.6,5.51984117]
[1746643127916,5.79991919,1812.3,1811.6,5.51984117]
[1746643127917,5.51869395,1812.1,1811.7,5.51963985]
[1746643128132,5.51876899,1812.0,1811.6,6.7035484]
[1746643128329,5.51861372,1812.1,1811.7,5.51956928]
[1746643128727,5.51861372,1812.1,1811.6,5.51982505]
[1746643128728,5.51890712,1812.0,1811.6,5.5197892]
[1746643129729,5.51890712,1812.0,1811.5,11.83702955]
[1746643130034,5.51829725,1812.2,1811.7,5.51966375]
[1746643130237,5.51869895,1812.1,1811.6,6.70346413]
[1746643130395,11.03743251,1812.1,1811.6,6.75865787]
[1746643130935,5.51878554,1812.0,1811.6,6.75865787]
[1746643131933,5.51869895,1812.1,1811.5,0.7968]
[1746643131934,5.51845924,1812.1,1811.5,0.7968]
[1746643132137,5.51932059,1811.9,1811.5,6.31700541]
[1746643132337,5.51938438,1811.8,1811.5,0.7968]
[1746643132556,5.51958406,1811.8,1811.5,0.7968]
[1746643133325,5.51866087,1812.1,1811.7,5.51947965]
[1746643133542,5.79998511,1812.3,1811.5,7.00385567]
[1746643133731,5.51933248,1811.9,1811.5,6.31706193]
[1746643134054,5.51943679,1811.8,1811.5,0.7968]
[1746643134231,5.51969907,1811.7,1811.5,0.7968]
[1746643134426,5.51967843,1811.7,1811.5,0.7968]
[1746643134755,5.51949204,1811.8,1811.5,0.7968]
[1746643134913,5.51937318,1811.8,1811.5,0.7968]
[1746643135318,11.03855646,1811.9,1811.5,6.31699194]
[1746643135557,11.03855646,1811.9,1811.6,5.51997386]
[1746643135558,5.51919056,1811.9,1811.6,5.51997386]
[1746643135733,5.51930275,1811.9,1811.5,6.94864028]
[1746643135921,5.5193902,1811.8,1811.5,6.94864028]
[1746643136268,5.51920612,1811.9,1811.5,6.94861712]
[1746643136427,5.51920612,1811.9,1811.5,6.94861277]
[1746643136628,5.51920612,1811.9,1811.5,1.42852477]
[1746643136829,11.03921148,1811.8,1811.5,0.7968]
[1746643137151,5.5195646,1811.8,1811.5,0.7968]
[1746643137532,5.5195646,1811.8,1811.5,6.31698628]
[1746643137732,5.5195646,1811.8,1811.5,0.7968]
[1746643138140,5.51921833,1811.9,1811.5,0.7968]
[1746643138358,5.51965445,1811.8,1811.5,1.42851804]
[1746643138673,5.51998233,1811.6,1811.2,6.31219808]
[1746643139158,5.52020475,1811.6,1811.2,6.31219808]
[1746643139463,11.0404264,1811.6,1811.2,6.31219808]
[1746643139671,5.52020475,1811.6,1811.2,6.31219808]
[1746643139840,5.52029968,1811.5,1811.2,6.31219808]
[1746643140033,5.52139025,1811.2,1810.9,4.45063173]
[1746643140236,5.52181115,1811.0,1810.9,4.45063173]
[1746643140447,5.52168041,1811.1,1810.9,3.64963173]
[1746643140654,5.80381115,1811.0,1810.9,3.64963173]
[1746643140820,8.80381115,1811.0,1810.9,3.64963173]
[1746643141024,0.282,1811.0,1810.9,3.64963173]
[1746643141253,13.92985369,1811.0,1810.9,3.64963173]
[1746643141459,20.53485369,1811.0,1810.9,3.64963173]
[1746643141660,12.12681115,1811.0,1810.9,3.64963173]
[1746643142063,12.40881115,1811.0,1810.9,3.64963173]
[1746643142229,5.80533609,1810.5,1810.4,4.74452125]
[1746643142428,12.41133609,1810.5,1810.4,4.74452125]
[1746643142648,15.41133609,1810.5,1810.4,4.74452125]
[1746643142967,15.96133609,1810.5,1810.4,4.74452125]
[1746643143458,15.96133609,1810.5,1809.3,0.8251]
[1746643143459,8.5236935,1810.4,1810.3,3.64533341]
[1746643143661,5.52516713,1809.9,1809.8,4.74452125]
[1746643143869,20.25720967,1809.9,1809.8,4.74452125]
[1746643144280,5.52608311,1809.6,1809.5,9.82010131]
[1746643144446,8.52608311,1809.6,1809.5,9.82010131]
[1746643144649,5.52608311,1809.6,1809.5,9.82010131]
[1746643145148,5.52418122,1810.3,1809.7,5.52559246]
[1746643145349,6.608,1810.4,1809.5,10.80211144]
[1746643145350,5.52533791,1809.9,1809.5,10.80211144]
[1746643145550,5.52396231,1810.3,1809.5,10.80211144]
[1746643145869,5.52608311,1809.6,1809.5,9.82010131]
[1746643146080,5.52560878,1809.8,1809.5,9.82010131]
[1746643146279,5.5239463,1810.3,1809.5,9.82010131]
[1746643146446,5.52608311,1809.6,1809.5,9.82010131]
[1746643146772,5.52608311,1809.6,1809.5,3.87544508]
[1746643146944,5.52699939,1809.3,1809.2,0.4340257]
[1746643147465,5.52689277,1809.4,1809.2,0.4340257]
[1746643147776,5.52699939,1809.3,1809.2,0.4340257]
[1746643148174,5.52658046,1809.5,1809.2,0.4340257]
[1746643148361,3.0,1809.8,1809.2,0.4340257]
[1746643148566,5.52699939,1809.3,1809.2,0.4340257]
[1746643149477,12.13687633,1809.4,1809.2,0.4340257]
[1746643149790,5.52699939,1809.3,1809.2,0.4340257]
[1746643150006,5.52660406,1809.5,1809.2,0.4340257]
[1746643150154,5.52634389,1809.6,1809.2,0.4340257]
[1746643150485,12.13558337,1809.8,1809.3,5.52676953]
[1746643150688,5.5266734,1809.5,1809.2,0.4340257]
[1746643150840,6.61,1809.8,1809.2,0.4340257]
[1746643151045,11.05325685,1809.5,1809.2,0.4340257]
[1746643151273,5.52661426,1809.5,1809.2,0.4340257]
[1746643151581,12.13560009,1809.8,1809.3,5.52686822]
[1746643151772,5.52478171,1810.1,1809.6,6.33194699]
[1746643151960,5.52468308,1810.1,1809.6,6.38709492]
[1746643152145,5.52417928,1810.3,1809.6,0.86125844]
[1746643152344,5.52482205,1810.1,1809.6,6.33192459]
[1746643152576,17.26071204,1810.4,1809.6,0.806]
[1746643152764,5.52529725,1809.9,1809.6,0.806]
[1746643152968,5.52480821,1810.1,1809.6,6.33182849]
[1746643153145,5.52425146,1810.2,1809.6,0.806]
[1746643153346,5.5253335,1809.9,1809.6,0.806]
[1746643153547,5.52455665,1810.1,1809.6,0.806]
[1746643153885,5.52486187,1810.0,1809.3,0.8262]
[1746643154190,5.52455665,1810.1,1809.5,5.52626398]
[1746643154348,5.52474146,1810.1,1809.6,6.07846995]
[1746643154550,5.52466943,1810.1,1809.6,6.07846995]
[1746643154745,5.52489475,1810.0,1809.7,0.7978]
[1746643155011,5.5243208,1810.2,1809.7,0.7978]
[1746643155149,5.52539402,1809.9,1809.7,0.7978]
[1746643155347,5.52547242,1809.8,1809.7,0.7978]
[1746643155788,5.52507173,1810.0,1809.7,0.7978]
[1746643155967,5.52401168,1810.3,1809.7,0.7978]
[1746643156170,5.52512164,1810.0,1809.7,0.7978]
[1746643156378,5.52521942,1809.9,1809.7,0.7978]
[1746643156798,5.52532845,1809.9,1809.7,0.7978]
[1746643157094,5.52512083,1810.0,1809.7,0.7978]
[1746643157396,3.0,1810.4,1809.7,0.7978]
[1746643157397,5.52547242,1809.8,1809.7,0.7978]
[1746643157552,5.52287024,1810.7,1809.8,5.52526928]
[1746643157758,5.52287024,1810.7,1809.8,5.52521656]
[1746643157759,3.0,1810.5,1809.8,5.52521656]
[1746643157988,5.52349293,1810.5,1810.0,5.52468859]
[1746643158203,5.52345747,1810.5,1810.0,5.52468859]